[Event "28th Hit Open-A 2024"]
[Site "Nova Gorica"]
[Date "2024.01.26"]
[Round "1.39"]
[White "Racnik, Tone"]
[Black "Beber, Anja"]
[Result "1/2-1/2"]
[ECO "C55"]
[WhiteElo "1849"]
[BlackElo "1606"]
[Annotator "NA RC COMBH"]
[PlyCount "83"]
[EventDate "2024.01.22"]
[EventType "swiss"]
[EventCountry "SLO"]
[SourceTitle "playchess.com"]
[Source "ChessBase"]
[SourceQuality "1"]
[TimeControl "5400+30"]

1. e4 {[%emt 0:00:05]} e5 {[%emt 0:00:16]} 2. Nf3 {[%emt 0:00:12]} Nc6 {[%emt 0:00:24]} 3. Bc4 {[%emt 0:00:28]} Nf6 {[%emt 0:00:35]} 4. d3 {[%emt 0:00:39]} Qe7 {[%emt 0:03:46]} 5. Ng5 {[%emt 0:05:04]} h6 {[%emt 0:05:47]} 6. Nf3 {[%emt 0:03:45]} Na5 {[%emt 0:00:00]} 7. Bb3 {[%emt 0:03:19]} c6 {[%emt 0:01:44]} 8. O-O {[%emt 0:00:48]} d6 {[%emt 0:00:00]} 9. Re1 {[%emt 0:02:17]} Qc7 {[%emt 0:00:00]} 10. Nbd2 {[%emt 0:01:05]} Be7 {[%emt 0:00:02]} 11. Nf1 {[%emt 0:00:43]} O-O {[%emt 0:02:59]} 12. Ng3 {[%emt 0:02:13]} Nxb3 {[%emt 0:04:16]} 13. axb3 {[%emt 0:03:15]} Be6 {[%emt 0:01:04]} 14. h3 {[%emt 0:04:24]} a6 {[%emt 0:03:01]} 15. d4 {[%emt 0:13:43]} Rad8 {[%emt 0:03:18]} 16. Qe2 {[%emt 0:02:02]} Rfe8 {[%emt 0:02:52]} 17. Be3 {[%emt 0:02:23]} Nd7 {[%emt 0:07:25]} 18. Nf5 {[%emt 0:01:26]} Bxf5 {[%emt 0:01:09]} 19. exf5 {[%emt 0:00:05]} Bf6 {[%emt 0:00:24]} 20. dxe5 {[%emt 0:00:33]} Nxe5 {[%emt 0:00:10]} 21. Nxe5 {[%emt 0:00:10]} Bxe5 {[%emt 0:00:25]} 22. c3 {[%emt 0:02:07]} Bf4 {[%emt 0:09:32]} 23. Ra4 {[%emt 0:06:01]} Bxe3 {[%emt 0:01:38]} 24. fxe3 {[%emt 0:00:06]} Re5 {[%emt 0:01:08]} 25. Qf2 {[%emt 0:00:34]} Qe7 {[%emt 0:06:23]} 26. Rf4 {[%emt 0:03:12]} Qf6 {[%emt 0:01:13]} 27. e4 {[%emt 0:01:59]} Rde8 {[%emt 0:00:18]} 28. Qd4 {[%emt 0:04:22]} c5 {[%emt 0:09:11]} 29. Qf2 {[%emt 0:06:45]} d5 {[%emt 0:10:09]} 30. Qxc5 {[%emt 0:00:07]} g5 {[%emt 0:00:18]} 31. Rf2 {[%emt 0:05:50]} dxe4 {[%emt 0:00:33]} 32. Qd4 {[%emt 0:00:07]} Rd8 {[%emt 0:00:20]} 33. Qb4 {[%emt 0:00:49]} e3 {[%emt 0:03:12]} 34. Rfe2 {[%emt 0:00:38]} Qxf5 {[%emt 0:01:36]} 35. Qxb7 {[%emt 0:04:44]} Qe6 {[%emt 0:03:22]} 36. Qf3 {[%emt 0:01:21]} Qxb3 {[%emt 0:01:35]} 37. Qf6 {[%emt 0:00:38]} Qb8 {[%emt 0:04:02]} 38. Qxh6 {[%emt 0:01:16]} Rd2 {[%emt 0:02:08]} 39. Qf6 {[%emt 0:05:10]} Rxe2 {[%emt 0:03:23]} 40. Rxe2 {[%emt 0:00:09]} Qb5 {[%emt 0:00:43]} 41. Qf3 {[%emt 0:01:22]} Qd3 {[%emt 0:02:58]} 42. Kh2 {[%emt 0:04:30]} 1/2-1/2

[Event "28th Hit Open-A 2024"]
[Site "Nova Gorica"]
[Date "2024.01.26"]
[Round "1.40"]
[White "Cortese, Lina"]
[Black "Budai, Leonardo"]
[Result "0-1"]
[ECO "A22"]
[WhiteElo "1582"]
[BlackElo "1847"]
[Annotator "NA RC COMBH"]
[PlyCount "128"]
[EventDate "2024.01.22"]
[EventType "swiss"]
[EventCountry "SLO"]
[SourceTitle "playchess.com"]
[Source "ChessBase"]
[SourceQuality "1"]
[TimeControl "5400+30"]

1. c4 {[%emt 0:00:04]} e5 {[%emt 0:00:18]} 2. Nc3 {[%emt 0:00:12]} Nf6 {[%emt 0:00:22]} 3. d3 {[%emt 0:00:17]} c6 {[%emt 0:00:27]} 4. Nf3 {[%emt 0:00:15]} d6 {[%emt 0:08:25]} 5. g3 {[%emt 0:00:25]} Be6 {[%emt 0:01:45]} 6. Bg2 {[%emt 0:00:35]} h6 {[%emt 0:00:22]} 7. O-O {[%emt 0:00:24]} Be7 {[%emt 0:05:00]} 8. Rb1 {[%emt 0:00:24]} Nbd7 {[%emt 0:06:47]} 9. a3 {[%emt 0:00:52]} d5 {[%emt 0:12:42]} 10. cxd5 {[%emt 0:01:25]} Nxd5 {[%emt 0:04:50]} 11. Bd2 {[%emt 0:01:30]} O-O {[%emt 0:01:33]} 12. b4 {[%emt 0:00:56]} f6 {[%emt 0:03:20]} 13. Nh4 {[%emt 0:04:18]} N7b6 {[%emt 0:12:58]} 14. Ng6 {[%emt 0:01:12]} Re8 {[%emt 0:00:34]} 15. Nxe7+ {[%emt 0:01:35]} Qxe7 {[%emt 0:00:47]} 16. Ne4 {[%emt 0:03:39]} Nd7 {[%emt 0:04:24]} 17. Qc1 {[%emt 0:02:02]} Bf7 {[%emt 0:10:33]} 18. Nc3 {[%emt 0:12:49]} Nxc3 {[%emt 0:03:49]} 19. Qxc3 {[%emt 0:00:49]} Rac8 {[%emt 0:00:24]} 20. Be3 {[%emt 0:03:53]} b6 {[%emt 0:02:29]} 21. Rfc1 {[%emt 0:04:23]} c5 {[%emt 0:03:20]} 22. bxc5 {[%emt 0:01:25]} Nxc5 {[%emt 0:02:33]} 23. Bxc5 {[%emt 0:01:02]} Rxc5 {[%emt 0:01:29]} 24. Qb2 {[%emt 0:01:06]} Rec8 {[%emt 0:00:22]} 25. Rxc5 {[%emt 0:00:38]} Qxc5 {[%emt 0:00:16]} 26. Bb7 {[%emt 0:05:19]} Rc7 {[%emt 0:01:00]} 27. Bf3 {[%emt 0:02:30]} Kf8 {[%emt 0:03:49]} 28. Qb4 {[%emt 0:00:47]} Ke7 {[%emt 0:00:27]} 29. Qxc5+ {[%emt 0:00:37]} Rxc5 {[%emt 0:00:07]} 30. a4 {[%emt 0:00:42]} Kd6 {[%emt 0:03:29]} 31. Rb4 {[%emt 0:01:13]} Be8 {[%emt 0:00:58]} 32. d4 {[%emt 0:01:53]} Ra5 {[%emt 0:01:12]} 33. dxe5+ {[%emt 0:01:10]} fxe5 {[%emt 0:01:01]} 34. Rg4 {[%emt 0:00:20]} g5 {[%emt 0:00:48]} 35. Rb4 {[%emt 0:04:55]} Rxa4 {[%emt 0:00:35]} 36. Rb3 {[%emt 0:01:18]} Bc6 {[%emt 0:01:31]} 37. Rd3+ {[%emt 0:02:11]} Rd4 {[%emt 0:00:34]} 38. Re3 {[%emt 0:02:05]} e4 {[%emt 0:00:58]} 39. Bh5 {[%emt 0:00:41]} a5 {[%emt 0:00:31]} 40. Bf7 {[%emt 0:03:10]} a4 {[%emt 0:00:46]} 41. f3 {[%emt 0:01:11]} b5 {[%emt 0:01:12]} 42. fxe4 {[%emt 0:01:52]} Bxe4 {[%emt 0:01:23]} 43. Ra3 {[%emt 0:00:00]} Kc5 {[%emt 0:00:38]} 44. Kf2 {[%emt 0:00:26]} Kb4 {[%emt 0:00:17]} 45. Ra2 {[%emt 0:00:40]} Bd5 {[%emt 0:00:24]} 46. Bxd5 {[%emt 0:02:01]} Rxd5 {[%emt 0:00:01]} 47. e4 {[%emt 0:00:29]} Re5 {[%emt 0:00:15]} 48. Ke3 {[%emt 0:00:27]} Kb3 {[%emt 0:00:06]} 49. Rd2 {[%emt 0:00:17]} a3 {[%emt 0:00:33]} 50. Rd3+ {[%emt 0:00:28]} Kb2 {[%emt 0:00:38]} 51. Rd2+ {[%emt 0:02:59]} Kb1 {[%emt 0:00:33]} 52. Rd1+ {[%emt 0:02:07]} Kc2 {[%emt 0:00:21]} 53. Rd2+ {[%emt 0:00:03]} Kc1 {[%emt 0:00:25]} 54. Rf2 {[%emt 0:04:13]} b4 {[%emt 0:00:56]} 55. Rf1+ {[%emt 0:00:21]} Kc2 {[%emt 0:00:41]} 56. Kd4 {[%emt 0:00:25]} Re8 {[%emt 0:00:32]} 57. Rf2+ {[%emt 0:00:40]} Kb3 {[%emt 0:00:08]} 58. Rf3+ {[%emt 0:02:13]} Ka4 {[%emt 0:00:09]} 59. Rf7 {[%emt 0:01:50]} a2 {[%emt 0:00:20]} 60. Kd5 {[%emt 0:01:12]} Kb3 {[%emt 0:00:30]} 61. Rf3+ {[%emt 0:00:18]} Ka4 {[%emt 0:00:50]} 62. Rf7 {[%emt 0:00:25]} b3 {[%emt 0:00:20]} 63. Ra7+ {[%emt 0:01:14]} Kb4 {[%emt 0:00:18]} 64. Rb7+ {[%emt 0:00:07]} Kc3 {[%emt 0:01:15]} 0-1

[Event "28th Hit Open-A 2024"]
[Site "Nova Gorica"]
[Date "2024.01.26"]
[Round "1.41"]
[White "Pagano, Sergio"]
[Black "Belyaletdinov, Leonard"]
[Result "1-0"]
[ECO "D94"]
[WhiteElo "1821"]
[BlackElo "1581"]
[Annotator "NA RC COMBH"]
[PlyCount "67"]
[EventDate "2024.01.22"]
[EventType "swiss"]
[EventCountry "SLO"]
[SourceTitle "playchess.com"]
[Source "ChessBase"]
[SourceQuality "1"]
[TimeControl "5400+30"]

1. d4 {[%emt 0:00:04]} d5 {[%emt 0:00:10]} 2. c4 {[%emt 0:00:09]} c6 {[%emt 0:00:12]} 3. Nc3 {[%emt 0:00:43]} Nf6 {[%emt 0:00:14]} 4. Nf3 {[%emt 0:01:48]} g6 {[%emt 0:00:32]} 5. e3 {[%emt 0:03:29]} Bg7 {[%emt 0:00:41]} 6. h3 {[%emt 0:01:06]} O-O {[%emt 0:00:48]} 7. Be2 {[%emt 0:00:29]} Nbd7 {[%emt 0:00:30]} 8. cxd5 {[%emt 0:00:34]} cxd5 {[%emt 0:00:13]} 9. O-O {[%emt 0:00:16]} a6 {[%emt 0:02:28]} 10. b3 {[%emt 0:02:44]} b6 {[%emt 0:01:10]} 11. Bb2 {[%emt 0:04:00]} Bb7 {[%emt 0:00:17]} 12. Rc1 {[%emt 0:00:26]} Ne4 {[%emt 0:04:19]} 13. Nxe4 {[%emt 0:03:11]} dxe4 {[%emt 0:00:59]} 14. Nd2 {[%emt 0:00:35]} f5 {[%emt 0:00:50]} 15. Rc2 {[%emt 0:02:21]} Rc8 {[%emt 0:10:29]} 16. Bc4+ {[%emt 0:03:20]} Kh8 {[%emt 0:00:36]} 17. a4 {[%emt 0:02:42]} e5 {[%emt 0:04:57]} 18. dxe5 {[%emt 0:01:37]} Nxe5 {[%emt 0:00:12]} 19. Qa1 {[%emt 0:01:05]} Qe7 {[%emt 0:00:10]} 20. Rfc1 {[%emt 0:02:58]} Rfe8 {[%emt 0:05:55]} 21. Bf1 {[%emt 0:02:10]} Rcd8 {[%emt 0:17:56]} 22. Rc7 {[%emt 0:11:54]} Rd7 {[%emt 0:00:24]} 23. Rxd7 {[%emt 0:01:08]} Qxd7 {[%emt 0:00:26]} 24. Rd1 {[%emt 0:00:40]} Nd3 {[%emt 0:09:07]} 25. Bxg7+ {[%emt 0:00:51]} Qxg7 {[%emt 0:00:10]} 26. Qxg7+ {[%emt 0:00:17]} Kxg7 {[%emt 0:00:17]} 27. Nc4 {[%emt 0:00:34]} Bd5 {[%emt 0:07:07]} 28. Bxd3 {[%emt 0:02:06]} exd3 {[%emt 0:00:08]} 29. Nxb6 {[%emt 0:02:14]} Bxb3 {[%emt 0:00:18]} 30. Rxd3 {[%emt 0:00:24]} Be6 {[%emt 0:00:12]} 31. a5 {[%emt 0:02:03]} Bf7 {[%emt 0:01:45]} 32. Rd7 {[%emt 0:01:35]} Re5 {[%emt 0:01:58]} 33. Nc4 {[%emt 0:02:12]} Rd5 {[%emt 0:00:05]} 34. Nd6 {[%emt 0:01:50]} 1-0

[Event "28th Hit Open-A 2024"]
[Site "Nova Gorica"]
[Date "2024.01.26"]
[Round "1.42"]
[White "Mulec, Dejan"]
[Black "Novak, Rok"]
[Result "0-1"]
[ECO "D00"]
[WhiteElo "1577"]
[BlackElo "1777"]
[Annotator "NA RC COMBH"]
[PlyCount "90"]
[EventDate "2024.01.22"]
[EventType "swiss"]
[EventCountry "SLO"]
[SourceTitle "playchess.com"]
[Source "ChessBase"]
[SourceQuality "1"]
[TimeControl "5400+30"]

1. d4 {[%emt 0:00:04]} d5 {[%emt 0:00:10]} 2. Nc3 {[%emt 0:00:12]} Nf6 {[%emt 0:00:55]} 3. Bf4 {[%emt 0:00:11]} c5 {[%emt 0:00:30]} 4. e4 {[%emt 0:00:34]} Nxe4 {[%emt 0:00:52]} 5. Nxe4 {[%emt 0:00:45]} dxe4 {[%emt 0:00:13]} 6. dxc5 {[%emt 0:00:06]} Qxd1+ {[%emt 0:02:03]} 7. Rxd1 {[%emt 0:00:29]} Bd7 {[%emt 0:02:00]} 8. b4 {[%emt 0:03:33]} a5 {[%emt 0:03:33]} 9. b5 {[%emt 0:03:08]} e6 {[%emt 0:01:59]} 10. Bd6 {[%emt 0:03:58]} g5 {[%emt 0:15:54]} 11. Bxf8 {[%emt 0:12:07]} Rxf8 {[%emt 0:03:33]} 12. Ne2 {[%emt 0:01:39]} Bxb5 {[%emt 0:01:55]} 13. Nc3 {[%emt 0:00:55]} Bc6 {[%emt 0:07:53]} 14. Nb5 {[%emt 0:05:11]} Na6 {[%emt 0:00:46]} 15. Nd6+ {[%emt 0:01:22]} Ke7 {[%emt 0:00:21]} 16. Bxa6 {[%emt 0:00:58]} bxa6 {[%emt 0:02:55]} 17. Rb1 {[%emt 0:04:07]} Rab8 {[%emt 0:01:06]} 18. Kd2 {[%emt 0:01:35]} f5 {[%emt 0:03:00]} 19. Rb3 {[%emt 0:02:48]} a4 {[%emt 0:00:54]} 20. Rh3 {[%emt 0:02:01]} Rh8 {[%emt 0:01:21]} 21. Rh6 {[%emt 0:01:43]} a3 {[%emt 0:06:14]} 22. Nxf5+ {[%emt 0:07:07]} exf5 {[%emt 0:02:50]} 23. Rxc6 {[%emt 0:00:18]} Rb5 {[%emt 0:03:42]} 24. Rxa6 {[%emt 0:09:05]} Rxc5 {[%emt 0:04:12]} 25. Rxa3 {[%emt 0:04:10]} Rd8+ {[%emt 0:00:24]} 26. Kc1 {[%emt 0:01:13]} Rdc8 {[%emt 0:00:55]} 27. c3 {[%emt 0:03:51]} Rxc3+ {[%emt 0:01:51]} 28. Rxc3 {[%emt 0:00:02]} Rxc3+ {[%emt 0:00:09]} 29. Kb2 {[%emt 0:00:52]} Rd3 {[%emt 0:01:47]} 30. Rc1 {[%emt 0:00:29]} Kd6 {[%emt 0:04:18]} 31. a4 {[%emt 0:00:45]} f4 {[%emt 0:04:14]} 32. Rc2 {[%emt 0:02:08]} Kd5 {[%emt 0:02:09]} 33. a5 {[%emt 0:00:50]} e3 {[%emt 0:04:48]} 34. fxe3 {[%emt 0:02:23]} fxe3 {[%emt 0:01:33]} 35. Rc3 {[%emt 0:12:04]} Kd4 {[%emt 0:02:00]} 36. Rc2 {[%emt 0:03:03]} Ke4 {[%emt 0:02:16]} 37. Rc4+ {[%emt 0:00:53]} Ke5 {[%emt 0:01:47]} 38. Kc2 {[%emt 0:00:40]} e2 {[%emt 0:03:24]} 39. Rc8 {[%emt 0:01:15]} Re3 {[%emt 0:01:27]} 40. Re8+ {[%emt 0:00:48]} Kd4 {[%emt 0:00:42]} 41. Rd8+ {[%emt 0:01:01]} Kc5 {[%emt 0:00:18]} 42. a6 {[%emt 0:01:37]} e1=Q {[%emt 0:00:20]} 43. a7 {[%emt 0:00:09]} Rc3+ {[%emt 0:01:15]} 44. Kb2 {[%emt 0:00:15]} Qc1+ {[%emt 0:00:08]} 45. Ka2 {[%emt 0:00:09]} Ra3# {[%emt 0:00:08]} 0-1

[Event "28th Hit Open-A 2024"]
[Site "Nova Gorica"]
[Date "2024.01.26"]
[Round "1.43"]
[White "Gricnik, Tine"]
[Black "Milicevic, Zoran"]
[Result "1-0"]
[ECO "D85"]
[WhiteElo "1758"]
[BlackElo "1550"]
[Annotator "NA RC COMBH"]
[PlyCount "103"]
[EventDate "2024.01.22"]
[EventType "swiss"]
[EventCountry "SLO"]
[SourceTitle "playchess.com"]
[Source "ChessBase"]
[SourceQuality "1"]
[TimeControl "5400+30"]

1. d4 {[%emt 0:00:05]} d5 {[%emt 0:00:23]} 2. c4 {[%emt 0:00:27]} Nf6 {[%emt 0:00:37]} 3. Nf3 {[%emt 0:01:49]} g6 {[%emt 0:00:49]} 4. cxd5 {[%emt 0:01:53]} Bg7 {[%emt 0:01:45]} 5. Nc3 {[%emt 0:01:11]} Nxd5 {[%emt 0:00:31]} 6. e4 {[%emt 0:01:44]} Nxc3 {[%emt 0:00:22]} 7. bxc3 {[%emt 0:00:09]} O-O {[%emt 0:00:21]} 8. Bc4 {[%emt 0:00:47]} c5 {[%emt 0:00:41]} 9. O-O {[%emt 0:01:49]} Bg4 {[%emt 0:00:19]} 10. Rb1 {[%emt 0:09:56]} Qc7 {[%emt 0:06:03]} 11. Be2 {[%emt 0:04:40]} cxd4 {[%emt 0:04:07]} 12. cxd4 {[%emt 0:01:25]} Nd7 {[%emt 0:03:57]} 13. h3 {[%emt 0:03:20]} Bxf3 {[%emt 0:00:54]} 14. Bxf3 {[%emt 0:00:17]} Rad8 {[%emt 0:05:11]} 15. Be3 {[%emt 0:02:20]} b6 {[%emt 0:00:57]} 16. Qb3 {[%emt 0:02:25]} Nb8 {[%emt 0:04:20]} 17. Rfc1 {[%emt 0:01:02]} Qd7 {[%emt 0:01:35]} 18. d5 {[%emt 0:01:34]} Qb7 {[%emt 0:06:02]} 19. a4 {[%emt 0:03:22]} Nd7 {[%emt 0:01:07]} 20. a5 {[%emt 0:04:35]} Ne5 {[%emt 0:03:31]} 21. Be2 {[%emt 0:02:33]} Rc8 {[%emt 0:01:59]} 22. axb6 {[%emt 0:01:50]} Rxc1+ {[%emt 0:00:34]} 23. Rxc1 {[%emt 0:00:20]} axb6 {[%emt 0:00:27]} 24. Qxb6 {[%emt 0:01:14]} Qxb6 {[%emt 0:00:37]} 25. Bxb6 {[%emt 0:00:07]} Rb8 {[%emt 0:01:34]} 26. Be3 {[%emt 0:00:25]} f6 {[%emt 0:03:05]} 27. f4 {[%emt 0:02:48]} Nf7 {[%emt 0:01:07]} 28. Rc7 {[%emt 0:09:55]} Bf8 {[%emt 0:03:55]} 29. Bg4 {[%emt 0:06:56]} Nd8 {[%emt 0:09:12]} 30. Rc8 {[%emt 0:02:50]} Rxc8 {[%emt 0:02:50]} 31. Bxc8 {[%emt 0:00:07]} Bg7 {[%emt 0:03:42]} 32. Bb6 {[%emt 0:01:43]} Nf7 {[%emt 0:00:20]} 33. Be6 {[%emt 0:00:14]} Kf8 {[%emt 0:00:21]} 34. Bxf7 {[%emt 0:00:55]} Kxf7 {[%emt 0:00:08]} 35. Kf2 {[%emt 0:00:12]} Bf8 {[%emt 0:00:11]} 36. Bc5 {[%emt 0:00:20]} h5 {[%emt 0:01:24]} 37. g4 {[%emt 0:01:15]} hxg4 {[%emt 0:01:04]} 38. hxg4 {[%emt 0:00:07]} Ke8 {[%emt 0:00:34]} 39. e5 {[%emt 0:01:56]} Bg7 {[%emt 0:03:14]} 40. e6 {[%emt 0:02:04]} Bh6 {[%emt 0:00:45]} 41. Kf3 {[%emt 0:00:53]} g5 {[%emt 0:01:35]} 42. f5 {[%emt 0:03:02]} Bf8 {[%emt 0:00:15]} 43. Bb6 {[%emt 0:00:16]} Bg7 {[%emt 0:00:28]} 44. Ke3 {[%emt 0:00:20]} Bf8 {[%emt 0:00:14]} 45. Kd4 {[%emt 0:00:06]} Bh6 {[%emt 0:00:26]} 46. Kc5 {[%emt 0:00:08]} Bg7 {[%emt 0:01:37]} 47. Kc6 {[%emt 0:00:15]} Bh6 {[%emt 0:01:53]} 48. Kc7 {[%emt 0:00:38]} Bg7 {[%emt 0:00:43]} 49. Bd4 {[%emt 0:00:17]} Bh8 {[%emt 0:00:47]} 50. Bc5 {[%emt 0:00:53]} Bg7 {[%emt 0:00:15]} 51. Bxe7 {[%emt 0:00:09]} Kxe7 {[%emt 0:01:04]} 52. d6+ {[%emt 0:00:05]} 1-0

[Event "28th Hit Open-A 2024"]
[Site "Nova Gorica"]
[Date "2024.01.26"]
[Round "1.44"]
[White "Trybus, Dominika"]
[Black "Rigatti, Giorgio"]
[Result "1/2-1/2"]
[ECO "B53"]
[WhiteElo "1530"]
[BlackElo "1749"]
[Annotator "NA RC COMBH"]
[PlyCount "57"]
[EventDate "2024.01.22"]
[EventType "swiss"]
[EventCountry "SLO"]
[SourceTitle "playchess.com"]
[Source "ChessBase"]
[SourceQuality "1"]
[TimeControl "5400+30"]

1. e4 {[%emt 0:00:14]} c5 {[%emt 0:00:30]} 2. Nf3 {[%emt 0:00:00]} d6 {[%emt 0:00:06]} 3. d4 {[%emt 0:00:01]} cxd4 {[%emt 0:00:08]} 4. Qxd4 {[%emt 0:00:05]} Nc6 {[%emt 0:00:11]} 5. Bb5 {[%emt 0:00:08]} Bd7 {[%emt 0:02:43]} 6. Bxc6 {[%emt 0:01:45]} Bxc6 {[%emt 0:00:03]} 7. Nc3 {[%emt 0:00:57]} Nf6 {[%emt 0:00:19]} 8. Bg5 {[%emt 0:00:52]} e6 {[%emt 0:00:14]} 9. h4 {[%emt 0:04:04]} Be7 {[%emt 0:01:09]} 10. O-O-O {[%emt 0:01:22]} Qc7 {[%emt 0:03:12]} 11. Qe3 {[%emt 0:07:00]} b5 {[%emt 0:08:05]} 12. Bxf6 {[%emt 0:09:28]} Bxf6 {[%emt 0:01:28]} 13. Nd5 {[%emt 0:00:21]} Bxd5 {[%emt 0:04:50]} 14. exd5 {[%emt 0:00:41]} e5 {[%emt 0:08:13]} 15. Nd4 {[%emt 0:01:57]} Qc5 {[%emt 0:08:10]} 16. Nc6 {[%emt 0:00:43]} Qxe3+ {[%emt 0:03:55]} 17. fxe3 {[%emt 0:00:07]} Bd8 {[%emt 0:04:09]} 18. Rdf1 {[%emt 0:02:20]} O-O {[%emt 0:02:02]} 19. Rf3 {[%emt 0:06:57]} f5 {[%emt 0:10:33]} 20. Kd2 {[%emt 0:04:56]} h5 {[%emt 0:09:34]} 21. g3 {[%emt 0:03:12]} g6 {[%emt 0:05:52]} 22. Rhf1 {[%emt 0:01:14]} e4 {[%emt 0:01:06]} 23. R3f2 {[%emt 0:02:15]} Bf6 {[%emt 0:01:01]} 24. c3 {[%emt 0:01:11]} a5 {[%emt 0:00:31]} 25. a3 {[%emt 0:01:22]} Kg7 {[%emt 0:01:44]} 26. Kc2 {[%emt 0:00:25]} a4 {[%emt 0:06:48]} 27. Kb1 {[%emt 0:03:33]} Kh6 {[%emt 0:01:34]} 28. Kc2 {[%emt 0:02:23]} Kg7 {[%emt 0:00:11]} 29. Kb1 {[%emt 0:00:41]} 1/2-1/2

[Event "28th Hit Open-A 2024"]
[Site "Nova Gorica"]
[Date "2024.01.27"]
[Round "2.1"]
[White "Goroshkov, Maksym"]
[Black "Berkes, Ferenc"]
[Result "0-1"]
[ECO "A46"]
[WhiteElo "2338"]
[BlackElo "2613"]
[Annotator "TA"]
[PlyCount "120"]
[EventDate "2024.01.22"]
[EventType "swiss"]
[EventCountry "SLO"]
[SourceTitle "playchess.com"]
[Source "ChessBase"]
[SourceQuality "1"]
[TimeControl "5400+30"]

{[%evp 22,120,0,-6,-4,0,0,-8,0,0,0,-12,-16,-16,-13,-22,-10,-46,-44,-44,-13,-22,-12,-16,-25,-21,0,-41,-45,-51,-49,-74,-79,-107,-101,-99,-95,-100,-88,-88,-81,-93,-85,-97,-88,-192,-195,-182,-172,-172,-172,-172,-172,-172,-172,-172,-172,-197,-172,-212,-212,-349,-212,-333,-252,-349,-341,-332,-325,-440,-438,-435,-408,-415,-375,-533,-435,-432,-403,-388,-354,-1394,-1011,-1256,-1064,-1450,-1406,-1347,-1283,-1628,-1518,-1477,-1047,-5816,-5712,-5661,-5602,-5575,-1666,-5575,-5085]} 1. d4 {[%emt 0:01:08]} Nf6 {[%emt 0:00:03]} 2. Nf3 {[%emt 0:00:33]} e6 {[%emt 0:00:11]} 3. g3 {[%emt 0:00:33]} b5 {[%emt 0:03:14]} 4. Qd3 {[%emt 0:00:30]} Ba6 {[%emt 0:05:23]} 5. Bg5 {[%emt 0:03:06]} Be7 {[%emt 0:02:09]} 6. Bxf6 {[%emt 0:04:40]} Bxf6 {[%emt 0:00:16]} 7. b4 {[%emt 0:01:38]} Nc6 {[%emt 0:04:09]} 8. c3 {[%emt 0:00:38]} Bb7 {[%emt 0:03:50]} 9. a4 {[%emt 0:04:14]} bxa4 {[%emt 0:03:33]} 10. Rxa4 {[%emt 0:00:32]} a5 {[%emt 0:10:15]} 11. bxa5 {[%emt 0:03:50]} Rxa5 {[%emt 0:07:48]} 12. Rxa5 {[%emt 0:00:45]} Nxa5 {[%emt 0:00:07]} 13. Nbd2 {[%emt 0:00:26]} O-O {[%emt 0:09:09]} 14. Bg2 {[%emt 0:00:28]} c5 {[%emt 0:01:34]} 15. O-O {[%emt 0:01:34]} Qc7 {[%emt 0:00:07]} 16. Ne4 {[%emt 0:03:25]} Bxe4 {[%emt 0:02:04]} 17. Qxe4 {[%emt 0:00:04]} d5 {[%emt 0:00:34]} 18. Qd3 {[%emt 0:00:46]} Rb8 {[%emt 0:00:31]} 19. e4 {[%emt 0:02:15]} dxe4 {[%emt 0:00:26]} 20. Qxe4 {[%emt 0:00:09]} Nc4 {[%emt 0:03:51]} 21. Qd3 {[%emt 0:05:21]} cxd4 {[%emt 0:04:01]} 22. cxd4 {[%emt 0:00:12]} Nb6 {[%emt 0:00:26]} 23. Rb1 {[%emt 0:04:28]} h6 {[%emt 0:10:40]} 24. h3 {[%emt 0:04:42]} Rd8 {[%emt 0:01:46]} 25. Qb5 {[%emt 0:02:48]} Nd5 {[%emt 0:00:16]} (25... Bxd4 $2 26. Nxd4 Rxd4 27. Qxb6 $18) 26. Qd3 {[%emt 0:05:34]} Ne7 {[%emt 0:04:11]} 27. g4 {[%emt 0:06:06]} Ng6 {[%emt 0:02:58]} 28. Qe4 {[%emt 0:01:34]} Qf4 {[%emt 0:02:45]} (28... Nf4 {feels hotter.} 29. Rb7 Qc1+ 30. Kh2 Nd5) 29. Ne5 {[%emt 0:03:15]} Bxe5 {[%emt 0:02:26]} 30. dxe5 {[%emt 0:00:06]} Qxe5 {[%emt 0:01:49]} 31. Qxe5 {[%emt 0:00:06]} Nxe5 {[%emt 0:00:04]} 32. Rb5 {[%emt 0:00:13]} Nd3 {[%emt 0:01:16]} 33. g5 {[%emt 0:01:38] [#]} (33. Bf1 $17 {keeps fighting.}) 33... hxg5 $1 $19 {[%emt 0:01:00]} 34. Rxg5 {[%emt 0:00:06]} Rd4 {[%emt 0:01:08]} 35. Ra5 {[%emt 0:00:20]} g6 {[%emt 0:00:33]} 36. Ra2 {[%emt 0:00:52]} Nf4 {[%emt 0:00:08]} 37. Kh2 {[%emt 0:00:07]} Kg7 {[%emt 0:00:15]} 38. Kg3 {[%emt 0:00:46]} f5 {[%emt 0:01:13]} 39. Bf1 {[%emt 0:00:37]} Kf6 {[%emt 0:00:29]} 40. Ra6 {[%emt 0:00:38]} Rb4 {[%emt 0:00:31]} 41. Ra1 {[%emt 0:00:28]} (41. Ra2 $142) 41... Rb3+ {[%emt 0:00:33]} 42. Kh2 {[%emt 0:00:05]} (42. f3 {was the only defense.} e5 43. Kf2) 42... Rf3 {[%emt 0:00:53]} 43. Ra2 {[%emt 0:00:02]} Kg5 {[%emt 0:01:13]} 44. Bg2 {[%emt 0:00:09]} Rc3 {[%emt 0:00:33]} 45. Ra8 {[%emt 0:00:17]} Rc2 {[%emt 0:00:49]} 46. Kg1 {[%emt 0:00:54]} Nd3 {[%emt 0:01:10]} 47. Re8 {[%emt 0:00:10]} Kf6 {[%emt 0:00:18]} (47... Rxf2 48. Bf1 Rf3 49. Rxe6 $19) ({Not} 47... Nxf2 48. Rxe6 Nd3 49. Re3 $17) 48. f3 {[%emt 0:01:02]} (48. Rf8+ $142 Kg7 49. Re8) 48... Rc1+ {[%emt 0:02:19]} 49. Bf1 {[%emt 0:00:44]} Ne5 {[%emt 0:00:35]} 50. Kf2 {[%emt 0:00:10]} Nxf3 {[%emt 0:00:24]} 51. Kxf3 $2 {[%emt 0:00:09]} (51. Bg2 Nh4 52. Bb7) 51... Rxf1+ $19 {[%emt 0:00:08]} 52. Kg2 {[%emt 0:00:07]} Rf4 {[%emt 0:00:25]} 53. Kg3 {[%emt 0:00:05]} Ra4 {[%emt 0:00:17]} 54. Rb8 {[%emt 0:00:14]} Ra3+ {[%emt 0:00:05]} 55. Kg2 {[%emt 0:00:05]} e5 {[%emt 0:00:28]} 56. h4 {[%emt 0:00:07]} Ra2+ {[%emt 0:01:00]} 57. Kg3 {[%emt 0:00:23]} f4+ {[%emt 0:00:07]} 58. Kf3 {[%emt 0:00:08]} Ra3+ {[%emt 0:00:04]} 59. Ke4 {[%emt 0:00:06]} Re3+ {[%emt 0:00:04]} 60. Kd5 {[%emt 0:00:03]} Kf5 {[%emt 0:00:27]} 0-1